bitfinex/quotes_BTCUSD_20250508
["timestamp","ask_amount","ask_price","bid_price","bid_amount"]
[1746748199040,0.23262405,103170.0,103160.0,0.30411535]
[1746748199829,0.22293207,103170.0,103160.0,0.30411535]
[1746748200422,0.23262481,103170.0,103160.0,0.35411535]
[1746748200595,0.22293207,103170.0,103160.0,0.35411535]
[1746748200832,0.1938548,103170.0,103160.0,0.57222337]
[1746748201035,0.21321848,103180.0,103170.0,0.0824]
[1746748201219,0.20352734,103180.0,103170.0,0.0824]
[1746748201359,0.19383601,103180.0,103170.0,0.0824]
[1746748202276,0.19383601,103180.0,103170.0,0.0664]
[1746748202482,0.19583601,103180.0,103170.0,0.05]
[1746748203142,0.20354735,103170.0,103160.0,0.13204333]
[1746748203338,0.2132398,103170.0,103160.0,0.13204333]
[1746748204639,0.2162398,103170.0,103160.0,0.03204333]
[1746748204848,0.2162398,103170.0,103160.0,0.13204333]
[1746748205292,0.2162398,103170.0,103160.0,0.03204333]
[1746748205540,0.2162398,103170.0,103160.0,0.35491535]
[1746748205891,0.2162398,103170.0,103160.0,0.11644333]
[1746748206492,0.20654735,103170.0,103160.0,0.01644333]
[1746748206701,0.20654735,103170.0,103160.0,0.11644333]
[1746748207130,0.20654735,103170.0,103160.0,0.01644333]
[1746748207276,0.20654735,103170.0,103160.0,0.11644333]
[1746748207485,0.20654735,103170.0,103160.0,0.01644333]
[1746748207903,0.20654735,103170.0,103160.0,0.11644333]
[1746748208106,0.20654735,103170.0,103160.0,0.35481535]
[1746748211255,0.20654735,103170.0,103160.0,0.23931535]
[1746748211482,0.20654735,103170.0,103160.0,0.00014333]
[1746748211811,0.20654735,103170.0,103160.0,0.00906983]
[1746748213008,0.20654735,103170.0,103160.0,0.05906983]
[1746748213227,0.22244735,103170.0,103160.0,0.05906983]
[1746748215281,0.32311427,103170.0,103160.0,0.05906983]
[1746748215441,0.30880857,103170.0,103160.0,0.05906983]
[1746748216095,0.31850112,103170.0,103160.0,0.05906983]
[1746748216450,0.28660112,103170.0,103160.0,0.05906983]
[1746748217372,0.28660112,103170.0,103160.0,0.00014333]
[1746748217591,0.28660112,103170.0,103160.0,0.05014333]
[1746748231207,0.29549433,103170.0,103160.0,0.05014333]
[1746748231414,0.29549433,103170.0,103160.0,0.07679642]
[1746748235641,0.31049433,103170.0,103160.0,0.07679642]
[1746748236292,0.32629433,103170.0,103160.0,0.07679642]
[1746748238472,0.31049433,103170.0,103160.0,0.07679642]
[1746748241861,0.3286596,103170.0,103160.0,0.07679642]
[1746748243226,0.3286596,103170.0,103160.0,0.02679642]
[1746748243459,0.3286596,103170.0,103160.0,0.07679642]
[1746748245206,0.3136596,103170.0,103160.0,0.07679642]
[1746748245823,0.3287596,103170.0,103160.0,0.07679642]
[1746748248043,0.3438596,103170.0,103160.0,0.07679642]
[1746748248783,0.3287596,103170.0,103160.0,0.07679642]
[1746748248984,0.3287596,103170.0,103160.0,0.02679642]
[1746748249192,0.3287596,103170.0,103160.0,0.07679642]
[1746748250262,0.20356726,103160.0,103150.0,0.0813]
[1746748250444,0.20356726,103160.0,103150.0,0.22799479]
[1746748250648,0.21207285,103160.0,103150.0,0.06563915]
[1746748250797,0.21207285,103160.0,103150.0,0.21219479]
[1746748251753,0.21207285,103160.0,103150.0,0.21419479]
[1746748251957,0.21407285,103160.0,103150.0,0.21419479]
[1746748253370,0.21407285,103160.0,103150.0,0.59932553]
[1746748253371,0.01050559,103160.0,103150.0,0.59932553]
[1746748253555,0.23345879,103160.0,103150.0,0.26419297]
[1746748254057,0.2237653,103160.0,103150.0,0.45808526]
[1746748254254,0.2237653,103160.0,103150.0,0.50635802]
[1746748254493,0.23345869,103160.0,103150.0,0.50635821]
[1746748254642,0.23345869,103160.0,103150.0,0.49666378]
[1746748254843,0.23345869,103160.0,103150.0,0.50635821]
[1746748255046,0.01050559,103160.0,103150.0,0.77781539]
[1746748255260,0.01050559,103160.0,103150.0,1.11781539]
[1746748255770,0.01050559,103160.0,103150.0,1.16143615]
[1746748256602,0.01050559,103160.0,103150.0,1.73629315]
[1746748257845,0.01050559,103160.0,103150.0,2.0664082]
[1746748260680,0.01050559,103160.0,103150.0,1.84318187]
[1746748260885,0.01050559,103160.0,103150.0,2.0337522]
[1746748261837,0.01050559,103160.0,103150.0,2.4500522]
[1746748263372,0.01050559,103160.0,103150.0,2.1499672]
[1746748263572,0.01050559,103160.0,103150.0,1.9764512]
[1746748264002,0.01050559,103160.0,103150.0,2.7174982]
[1746748264773,0.01050559,103160.0,103150.0,2.3174982]
[1746748265174,0.01050559,103160.0,103150.0,2.7174982]
[1746748268693,0.01050559,103160.0,103150.0,2.5942202]
[1746748268907,0.2237653,103160.0,103150.0,1.4331479]
[1746748269114,0.02019851,103160.0,103150.0,1.20588186]
[1746748269360,0.02019851,103160.0,103150.0,0.99895553]
[1746748269552,0.02019851,103160.0,103150.0,1.73895553]
[1746748269553,0.02019861,103160.0,103150.0,1.73895553]
[1746748269733,0.02019851,103160.0,103150.0,1.96218186]
[1746748270080,0.01050559,103160.0,103150.0,1.96218186]
[1746748270678,0.01050559,103160.0,103150.0,1.96214186]
[1746748270875,0.01050559,103160.0,103150.0,1.54584186]
[1746748271076,0.01050559,103160.0,103150.0,1.14584186]
[1746748271288,0.02019851,103160.0,103150.0,1.14584186]
[1746748271427,0.01050559,103160.0,103150.0,1.54584186]
[1746748273527,0.01050559,103160.0,103150.0,1.14584186]
[1746748273899,0.02019861,103160.0,103150.0,1.12954186]
[1746748274101,0.02019851,103160.0,103150.0,1.12954186]
[1746748274299,0.01050559,103160.0,103150.0,1.12954186]
[1746748274504,0.02989171,103160.0,103150.0,1.12954186]
[1746748274703,0.02989162,103160.0,103150.0,1.12954186]
[1746748274944,0.24315209,103160.0,103150.0,1.00181867]
[1746748275113,0.24315209,103160.0,103150.0,1.07975319]
[1746748275305,0.24985851,103160.0,103150.0,1.08944762]
[1746748275504,0.05598492,103160.0,103150.0,1.04059582]
[1746748275702,0.24016597,103160.0,103150.0,0.35756476]
[1746748275933,0.25636597,103160.0,103150.0,0.35756476]
[1746748278562,0.25636597,103160.0,103150.0,0.55145714]
[1746748278746,0.24667267,103160.0,103150.0,0.35756476]
[1746748278955,0.24667267,103160.0,103150.0,0.313944]
[1746748279158,0.23047267,103160.0,103150.0,0.313944]
[1746748279936,0.23047267,103160.0,103150.0,0.45053316]
[1746748280674,0.23047267,103160.0,103150.0,0.46022749]
[1746748280881,0.23047267,103160.0,103150.0,0.45053316]
[1746748281277,0.24016587,103160.0,103150.0,0.46992154]
[1746748281491,0.02989153,103160.0,103150.0,0.46992154]
[1746748281695,0.23345842,103160.0,103150.0,0.46992154]
[1746748281918,0.23345842,103160.0,103150.0,0.4796155]
[1746748282098,0.24315191,103160.0,103150.0,0.4796155]
[1746748282910,0.23345842,103160.0,103150.0,0.4796155]
[1746748283947,0.24315191,103160.0,103150.0,0.4796155]
[1746748284141,0.24315191,103160.0,103150.0,0.46992154]
[1746748284371,0.25815191,103160.0,103150.0,0.4796155]
[1746748284513,0.06427822,103160.0,103150.0,0.4796155]
[1746748284714,0.05458483,103160.0,103150.0,0.4796155]
[1746748285543,0.06427822,103160.0,103150.0,0.4796155]
[1746748285715,0.07397171,103160.0,103150.0,0.4796155]
[1746748285953,0.25815238,103160.0,103150.0,0.51351588]
[1746748286118,0.25815238,103160.0,103150.0,0.52320928]
[1746748286317,0.26784605,103160.0,103150.0,0.51351541]
[1746748286766,0.25815238,103160.0,103150.0,0.52320946]
[1746748286985,0.25815238,103160.0,103150.0,0.49412721]
[1746748287159,0.26435936,103160.0,103150.0,0.51351559]
[1746748287374,0.26435936,103160.0,103150.0,0.50382145]
[1746748287787,0.25466606,103160.0,103150.0,0.33789881]
[1746748287987,0.24497267,103160.0,103150.0,0.28084589]
[1746748288613,0.24497267,103160.0,103150.0,0.23084589]
[1746748289019,0.24497267,103160.0,103150.0,0.29054041]
[1746748289172,0.24497267,103160.0,103150.0,0.45382155]
[1746748289378,0.24497267,103160.0,103150.0,0.50382155]
[1746748289579,0.24497267,103160.0,103150.0,0.44412722]
[1746748289824,0.24497267,103160.0,103150.0,0.43443279]
[1746748290377,0.24497267,103160.0,103150.0,0.25023502]
[1746748290555,0.24497267,103160.0,103150.0,0.28084589]
[1746748290885,0.24497267,103160.0,103150.0,0.30023493]
[1746748291086,0.24497267,103160.0,103150.0,0.2905405]
[1746748291613,0.24497267,103160.0,103150.0,0.50382164]
[1746748291818,0.23876587,103160.0,103150.0,0.51351588]
[1746748292268,0.23876587,103160.0,103150.0,0.50382164]
[1746748292468,0.23876587,103160.0,103150.0,0.50382183]
[1746748292901,0.23876587,103160.0,103150.0,0.4941274]
[1746748293053,0.25426587,103160.0,103150.0,0.4941274]
[1746748293251,0.24457267,103160.0,103150.0,0.24694635]
[1746748293477,0.25426587,103160.0,103150.0,0.45053306]
[1746748293677,0.25426587,103160.0,103150.0,0.45053316]
[1746748293854,0.27241735,103160.0,103150.0,0.46022749]
[1746748294648,0.25426587,103160.0,103150.0,0.46022749]
[1746748294850,0.25426587,103160.0,103150.0,0.09071767]
[1746748295072,0.24457267,103160.0,103150.0,0.23725174]
[1746748295285,0.24457267,103160.0,103150.0,0.25664069]
[1746748295512,0.24457267,103160.0,103150.0,0.45053307]
[1746748295710,0.24457267,103160.0,103150.0,0.23725174]
[1746748296548,0.26272846,103160.0,103150.0,0.24694626]
[1746748296748,0.26272846,103160.0,103150.0,0.23725174]
[1746748297190,0.26272846,103160.0,103150.0,0.24694626]
[1746748297363,0.26272846,103160.0,103150.0,0.25664069]
[1746748297597,0.26272846,103160.0,103150.0,0.4602274]
[1746748297813,0.27242166,103160.0,103150.0,0.4602274]
[1746748298014,0.25426587,103160.0,103150.0,0.45053307]
[1746748298790,0.23876587,103160.0,103150.0,0.4602274]
[1746748299899,0.23876587,103160.0,103150.0,0.45053307]
[1746748300127,0.23876587,103160.0,103150.0,0.4602274]
[1746748300699,0.23876587,103160.0,103150.0,0.45053307]
[1746748300908,0.23876587,103160.0,103150.0,0.4602274]
[1746748301802,0.23876587,103160.0,103150.0,0.23725174]
[1746748302399,0.23876587,103160.0,103150.0,0.44083855]
[1746748302645,0.23876587,103160.0,103150.0,0.45053288]
[1746748303213,0.27253515,103160.0,103150.0,0.29430448]
[1746748303372,0.27253515,103160.0,103150.0,0.45053288]
[1746748305598,0.27253515,103160.0,103150.0,0.28450861]
[1746748305798,0.27253515,103160.0,103150.0,0.27481447]
[1746748305946,0.27253515,103160.0,103150.0,0.27481456]
[1746748306148,0.27253515,103160.0,103150.0,0.28450899]
[1746748307306,0.20358699,103150.0,103140.0,0.342]
[1746748307524,0.23488699,103150.0,103140.0,0.48867333]
[1746748307741,0.22870355,103150.0,103140.0,0.68489101]
[1746748307953,0.22870355,103150.0,103140.0,0.89819302]
[1746748308152,0.23839798,103150.0,103140.0,0.91758337]
[1746748308357,0.25656901,103150.0,103140.0,0.91758337]
[1746748308762,0.25656854,103150.0,103140.0,0.91758281]
[1746748308967,0.26626306,103150.0,103140.0,0.90788782]
[1746748309392,0.26626306,103150.0,103140.0,0.92058281]
[1746748310015,0.04450513,103150.0,103140.0,0.92058225]
[1746748310638,0.02820456,103150.0,103140.0,0.92058225]
[1746748310852,0.03789889,103150.0,103140.0,0.92058225]
[1746748311185,0.02820456,103150.0,103140.0,0.92058225]
[1746748311388,0.0378988,103150.0,103140.0,0.92058225]
[1746748311802,0.06575984,103150.0,103140.0,0.92058225]
[1746748312004,0.05606541,103150.0,103140.0,0.92058225]
[1746748312215,0.02698317,103150.0,103140.0,0.92058225]
[1746748312398,0.02698317,103150.0,103140.0,0.95248225]
[1746748313150,0.03667694,103150.0,103140.0,0.95248225]
[1746748313364,0.02698317,103150.0,103140.0,0.95248225]
[1746748314444,0.00881656,103150.0,103140.0,0.95248225]
[1746748316514,0.00538739,103150.0,103140.0,0.95248225]
[1746748316723,0.00820724,103150.0,103140.0,0.95248225]
[1746748317198,0.00820724,103150.0,103140.0,0.98031896]
[1746748318780,0.00820724,103150.0,103140.0,0.99641896]
[1746748318987,0.00820724,103150.0,103140.0,2.0157738]
[1746748319190,0.00820724,103150.0,103140.0,2.04047737]
[1746748319388,0.00820724,103150.0,103140.0,2.44047737]
[1746748319597,0.0317,103180.0,103170.0,0.21323962]
[1746748319801,0.02907351,103180.0,103170.0,0.51599984]
[1746748320006,0.06474495,103180.0,103170.0,0.36946586]
[1746748320436,0.06474486,103180.0,103170.0,0.37915794]
[1746748320639,0.06474486,103180.0,103170.0,0.36946586]
[1746748320845,0.25858162,103180.0,103170.0,0.35977369]
[1746748321051,0.24889039,103180.0,103170.0,0.35977369]
[1746748321428,0.25858219,103180.0,103170.0,0.35977369]
[1746748321808,0.25189086,103180.0,103170.0,0.36946623]
[1746748322036,0.02897946,103180.0,103170.0,0.3791584]
[1746748322240,0.0420539,103180.0,103170.0,0.3791584]
[1746748322446,0.0323622,103180.0,103170.0,0.38885048]
[1746748322843,0.04205381,103180.0,103170.0,0.38885048]
[1746748323255,0.00328832,103180.0,103170.0,0.66765147]
[1746748323465,0.01297936,103180.0,103170.0,1.00765147]
[1746748323888,0.01297936,103180.0,103170.0,0.8452174]
[1746748323889,0.02267059,103180.0,103170.0,0.8452174]
[1746748324101,0.02920631,103180.0,103170.0,0.8452174]
[1746748324335,0.25782563,103180.0,103170.0,0.48653407]
[1746748324530,0.25184326,103180.0,103170.0,0.48653407]
[1746748324734,0.25484326,103180.0,103170.0,0.14653407]
[1746748324941,0.25584326,103180.0,103170.0,0.14653407]
[1746748325377,0.25584326,103180.0,103170.0,0.15622681]
[1746748325782,0.2258548,103170.0,103160.0,0.83436133]
[1746748325935,0.24523971,103170.0,103160.0,0.7857884]
[1746748326150,0.25224492,103170.0,103160.0,0.7954817]
[1746748326351,0.25224492,103170.0,103160.0,0.76640133]
[1746748326548,0.25224492,103170.0,103160.0,0.7857883]
[1746748326759,0.25224492,103170.0,103160.0,0.77609491]
[1746748326955,0.25224492,103170.0,103160.0,0.7857884]
[1746748327223,0.25224492,103170.0,103160.0,0.79548179]
[1746748327826,0.25224492,103170.0,103160.0,0.37918179]
[1746748328031,0.25224492,103170.0,103160.0,0.36948802]
[1746748328441,0.25224492,103170.0,103160.0,0.37048802]
[1746748328844,0.25424492,103170.0,103160.0,0.37048802]
[1746748329213,0.24455256,103170.0,103160.0,0.001]
[1746748329413,0.24455256,103170.0,103160.0,0.14753407]
[1746748331266,0.24455256,103170.0,103160.0,0.001]
[1746748331612,0.34521948,103170.0,103160.0,0.001]
[1746748332020,0.34513482,103170.0,103160.0,0.001]
[1746748334281,0.34513482,103170.0,103160.0,0.14753407]
[1746748335022,0.34513482,103170.0,103160.0,0.001]
[1746748337265,0.23546726,103160.0,103150.0,0.14653407]
[1746748337690,0.2422688,103160.0,103150.0,0.14653407]
[1746748337983,0.2422688,103160.0,103150.0,0.15622868]
[1746748338193,0.2422688,103160.0,103150.0,0.35981558]
[1746748338389,0.2422688,103160.0,103150.0,0.36281558]
[1746748338875,0.2422688,103160.0,103150.0,0.21628151]
[1746748339049,0.34293572,103160.0,103150.0,0.003]
[1746748339688,0.34493572,103160.0,103150.0,0.003]
[1746748339867,0.36305868,103160.0,103150.0,0.003]
[1746748340199,0.22579238,103150.0,103140.0,0.71050249]
[1746748340313,0.04159386,103150.0,103140.0,0.71050249]
[1746748340523,0.01938829,103150.0,103140.0,0.87642664]
[1746748340938,0.01938829,103150.0,103140.0,0.72989257]
[1746748341166,0.01967379,103150.0,103140.0,0.72989257]
[1746748341355,0.02367379,103150.0,103140.0,0.87642664]
[1746748341782,0.03336793,103150.0,103140.0,0.80670666]
[1746748342578,0.03336793,103150.0,103140.0,0.5833585]
[1746748342795,0.03336793,103150.0,103140.0,0.80670666]
[1746748343896,0.01397936,103150.0,103140.0,0.80670666]
[1746748344048,0.04306208,103150.0,103140.0,0.80670666]
[1746748345279,0.04958351,103150.0,103140.0,0.80670666]
[1746748345427,0.03988908,103150.0,103140.0,0.80670666]
[1746748346195,0.03019494,103150.0,103140.0,0.80670666]
[1746748346946,0.02050098,103150.0,103140.0,0.80670666]
[1746748348662,0.01080712,103150.0,103140.0,0.80670666]
[1746748348889,0.01080712,103150.0,103140.0,0.82250666]
[1746748349964,0.02050089,103150.0,103140.0,0.80670666]
[1746748350657,0.02640712,103150.0,103140.0,0.80670666]
[1746748350894,0.01080712,103150.0,103140.0,0.80670666]
[1746748351334,0.02050108,103150.0,103140.0,0.5833585]
[1746748351561,0.02670712,103150.0,103140.0,0.80670666]
[1746748353098,0.04609475,103150.0,103140.0,0.80670666]
[1746748353276,0.05578871,103150.0,103140.0,0.80670666]
[1746748355477,0.06548295,103150.0,103140.0,0.80670666]
[1746748356079,0.05578871,103150.0,103140.0,0.80670666]
[1746748356292,0.06548285,103150.0,103140.0,0.80670666]
[1746748356705,0.05578871,103150.0,103140.0,0.80670666]
[1746748357162,0.04609475,103150.0,103140.0,0.80670666]
[1746748357402,0.03640089,103150.0,103140.0,0.80670666]
[1746748357625,0.04609485,103150.0,103140.0,0.80670666]
[1746748357842,0.03640098,103150.0,103140.0,0.80670666]
[1746748358299,0.02670712,103150.0,103140.0,0.80670666]
[1746748358542,0.01080712,103150.0,103140.0,0.80670666]
[1746748358770,0.02050098,103150.0,103140.0,0.80670666]
[1746748360584,0.03600098,103150.0,103140.0,0.80670666]
[1746748361771,0.03600098,103150.0,103140.0,0.72994675]
[1746748362432,0.02630712,103150.0,103140.0,0.72994675]
[1746748362627,0.03600098,103150.0,103140.0,0.72994675]
[1746748362954,0.02630712,103150.0,103140.0,0.72994675]
[1746748363155,0.03600098,103150.0,103140.0,0.72994675]
[1746748364168,0.02630712,103150.0,103140.0,0.72994675]
[1746748365558,0.02630712,103150.0,103140.0,0.2433585]
[1746748365786,0.25568807,103150.0,103140.0,0.21427361]
[1746748365959,0.25568807,103150.0,103140.0,0.01066688]
[1746748366162,0.27386478,103150.0,103140.0,0.01066688]
[1746748366363,0.0096949,103140.0,103130.0,0.49272893]
[1746748366570,0.00969471,103140.0,103130.0,0.48303262]
[1746748366786,0.25866813,103150.0,103140.0,0.213302]
[1746748366994,0.25866813,103150.0,103140.0,0.20360673]
[1746748367202,0.25578075,103150.0,103140.0,0.00969555]
[1746748367343,0.25178075,103150.0,103140.0,0.01939101]
[1746748367548,0.25178075,103150.0,103140.0,0.21330219]
[1746748367780,0.26995222,103150.0,103140.0,0.21330219]
[1746748369314,0.27295222,103150.0,103140.0,0.21330219]
[1746748369545,0.26325779,103150.0,103140.0,0.20360673]
[1746748369998,0.25645103,103150.0,103140.0,0.20360673]
[1746748370524,0.25645103,103150.0,103140.0,0.00969555]
[1746748370726,0.00969527,103140.0,103130.0,0.47690343]
[1746748370939,0.01939045,103140.0,103130.0,0.47690343]
[1746748371762,0.02908553,103140.0,103130.0,0.47690343]
[1746748372168,0.03008553,103140.0,103130.0,0.47690343]
[1746748372492,0.03308553,103140.0,103130.0,0.47690343]
[1746748372831,0.04278052,103140.0,103130.0,0.47690343]
[1746748373492,0.04278052,103140.0,103130.0,0.40902343]
[1746748373716,0.0233897,103140.0,103130.0,0.51750648]
[1746748373915,0.03990099,103140.0,103130.0,0.49246343]
[1746748375068,0.04959636,103140.0,103130.0,0.49246343]
[1746748375709,0.24350763,103140.0,103130.0,0.48276778]
[1746748375961,0.04959636,103140.0,103130.0,0.46716778]
[1746748378144,0.04959636,103140.0,103130.0,0.55639821]
[1746748378920,0.05929191,103140.0,103130.0,0.56609461]
[1746748379115,0.04959636,103140.0,103130.0,0.56609461]
[1746748379300,0.05929182,103140.0,103130.0,0.56609461]
[1746748379714,0.05929182,103140.0,103130.0,0.57579045]
[1746748380323,0.03990099,103140.0,103130.0,0.57579045]
[1746748380713,0.04959636,103140.0,103130.0,0.57579045]
[1746748380911,0.05929182,103140.0,103130.0,0.57304713]
[1746748381162,0.25320384,103140.0,103130.0,0.56335129]
[1746748381587,0.24350829,103140.0,103130.0,0.56335129]
[1746748383302,0.26910384,103140.0,103130.0,0.40706711]
[1746748383528,0.25940885,103140.0,103130.0,0.34197053]
[1746748383698,0.25940885,103140.0,103130.0,0.55635878]
[1746748383891,0.25940885,103140.0,103130.0,0.48855878]
[1746748384094,0.25940885,103140.0,103130.0,0.55635878]
[1746748384409,0.25940885,103140.0,103130.0,0.5660548]
[1746748384770,0.25940885,103140.0,103130.0,0.47682437]
[1746748384978,0.25940885,103140.0,103130.0,0.46712835]
[1746748385186,0.24971367,103140.0,103130.0,0.46712835]
[1746748385384,0.24971367,103140.0,103130.0,0.47682437]
[1746748385594,0.24971367,103140.0,103130.0,0.45743223]
[1746748385797,0.24971367,103140.0,103130.0,0.46712835]
[1746748386205,0.24971367,103140.0,103130.0,0.47682437]
[1746748386585,0.24971367,103140.0,103130.0,0.45743223]
[1746748386726,0.24971367,103140.0,103130.0,0.47682456]
[1746748387328,0.2559183,103140.0,103130.0,0.03941925]
[1746748387527,0.23652729,103140.0,103120.0,0.84068996]
[1746748387731,0.21332241,103130.0,103120.0,0.84068996]
[1746748387928,0.20362592,103130.0,103120.0,0.98727821]
[1746748388139,0.02615029,103130.0,103120.0,0.99697499]
[1746748388321,0.04431703,103130.0,103120.0,0.99697499]
[1746748388572,0.05401334,103130.0,103120.0,0.99697499]
[1746748388768,0.0358466,103130.0,103120.0,0.99797499]
[1746748388974,0.03784594,103130.0,103120.0,0.99797499]
[1746748389193,0.03784585,103130.0,103120.0,0.99697499]
[1746748389602,0.05364585,103130.0,103120.0,0.98217499]
[1746748389998,0.03784585,103130.0,103120.0,0.98217499]
[1746748390393,0.02814973,103130.0,103120.0,0.98217499]
[1746748390590,0.03784575,103130.0,103120.0,0.98217499]
[1746748390798,0.03784575,103130.0,103120.0,1.02244264]
[1746748391430,0.04754196,103130.0,103120.0,1.02244264]
[1746748391647,0.03784575,103130.0,103120.0,0.9090942]
[1746748391837,0.03784575,103130.0,103120.0,0.9768942]
[1746748392041,0.02814973,103130.0,103120.0,1.0078942]
[1746748392495,0.0184538,103130.0,103120.0,1.0078942]
[1746748393041,0.02814964,103130.0,103120.0,1.0078942]
[1746748395823,0.02814964,103130.0,103120.0,1.09711947]
[1746748396777,0.04754197,103130.0,103120.0,1.09711947]
[1746748396989,0.04754178,103130.0,103120.0,1.09711947]
[1746748397197,0.02814964,103130.0,103120.0,1.49711947]
[1746748397410,0.03784557,103130.0,103120.0,1.49711947]
[1746748397837,0.02814964,103130.0,103120.0,1.49711947]
[1746748399091,0.0184538,103130.0,103120.0,1.49711947]
[1746748399292,0.0184538,103130.0,103120.0,1.48151947]
[1746748399713,0.00875815,103130.0,103120.0,1.48151947]
[1746748400561,0.00875815,103130.0,103120.0,1.49711947]
[1746748400766,0.00875815,103130.0,103120.0,1.03837669]
[1746748400945,0.00875815,103130.0,103120.0,1.10613669]
[1746748403200,0.00875815,103130.0,103120.0,1.24712569]
[1746748404850,0.00875815,103130.0,103120.0,1.60157725]
[1746748405527,0.00875815,103130.0,103120.0,1.58597725]
[1746748408968,0.00875815,103130.0,103120.0,1.57057725]
[1746748409173,0.00875815,103130.0,103120.0,1.17057725]
[1746748410121,0.00875815,103130.0,103120.0,1.18707725]
[1746748410326,0.00875815,103130.0,103120.0,1.02958825]
[1746748411805,0.00875815,103130.0,103120.0,1.02053103]
[1746748412887,0.00875815,103130.0,103120.0,0.8246694]
[1746748413103,0.00875815,103130.0,103120.0,1.01858606]
[1746748413538,0.00875815,103130.0,103120.0,1.0276418]
[1746748415109,0.00875815,103130.0,103120.0,1.01858606]
[1746748415350,0.00875815,103130.0,103120.0,0.86195293]
[1746748415800,0.02385815,103130.0,103120.0,0.86195293]
[1746748416488,0.00875815,103130.0,103120.0,0.86195293]
[1746748416698,0.00875815,103130.0,103120.0,1.26195293]
[1746748416909,0.00875815,103130.0,103120.0,1.29104457]
[1746748417124,0.00875815,103130.0,103120.0,3.34305719]
[1746748417335,0.00875815,103130.0,103120.0,2.20680304]
[1746748417547,0.00875815,103130.0,103120.0,1.41512328]
[1746748417761,0.00875815,103130.0,103120.0,1.83076007]
[1746748417970,0.00875815,103130.0,103120.0,1.83981705]
[1746748418620,0.00875815,103130.0,103120.0,1.8152276]
[1746748418924,0.00875815,103130.0,103120.0,1.7999276]
[1746748420051,0.00875815,103130.0,103120.0,0.92661158]
[1746748420292,0.25328047,103130.0,103120.0,0.2862265]
[1746748420526,0.06904688,103130.0,103120.0,0.58664352]
[1746748420751,0.05934991,103130.0,103120.0,0.58664352]
[1746748421210,0.05934982,103130.0,103120.0,0.51896352]
[1746748421447,0.05259167,103130.0,103120.0,0.58664352]
[1746748421683,0.05804722,103130.0,103120.0,0.58664352]
[1746748422139,0.06774334,103130.0,103120.0,0.58664352]
[1746748423942,0.04204722,103130.0,103120.0,0.58664352]
[1746748424159,0.04204722,103130.0,103120.0,0.73323177]
[1746748424356,0.05704722,103130.0,103120.0,0.73323177]
[1746748425625,0.07643965,103130.0,103120.0,0.73323177]
[1746748425840,0.07643965,103130.0,103120.0,0.73929366]
[1746748426060,0.06674334,103130.0,103120.0,0.73929366]
[1746748426279,0.05704722,103130.0,103120.0,0.73929366]
[1746748426545,0.06674334,103130.0,103120.0,0.73929366]
[1746748427402,0.25097797,103130.0,103120.0,0.14570014]
[1746748427611,0.40389771,103130.0,103120.0,0.14570014]
[1746748427823,0.35164489,103130.0,103120.0,0.14570014]
[1746748428033,0.35164489,103130.0,103120.0,0.1457097]
[1746748428034,0.35156489,103130.0,103120.0,0.1457097]
[1746748428413,0.35156489,103130.0,103120.0,0.13964781]
[1746748430877,0.35901143,103130.0,103120.0,0.13964781]
[1746748432820,0.35901143,103130.0,103120.0,0.05033419]
[1746748433415,0.35901143,103130.0,103120.0,0.04126765]
[1746748435774,0.35901143,103130.0,103120.0,0.05031049]
[1746748436820,0.35901143,103130.0,103120.0,0.04126765]
[1746748444424,0.415304,103130.0,103120.0,0.04126765]
[1746748444630,1.0164331,103130.0,103120.0,0.04126765]
[1746748444851,0.86984485,103130.0,103120.0,0.04126765]
[1746748445060,0.86977892,103130.0,103120.0,0.04126765]
[1746748445268,0.86977892,103130.0,103120.0,0.04026765]
[1746748445727,0.2443637,103110.0,103100.0,0.14858825]
[1746748445939,0.34503062,103110.0,103100.0,0.14858825]
[1746748446163,0.69024334,103110.0,103100.0,0.002]
[1746748446387,1.15286025,103110.0,103100.0,0.002]
[1746748446616,0.1,103100.0,103090.0,0.04563679]
[1746748446839,1.1120058,103100.0,103090.0,0.04563679]
[1746748447082,1.15166446,103100.0,103090.0,0.0457761]
[1746748447327,0.9735663,103100.0,103090.0,0.0457761]
[1746748447537,0.97289938,103100.0,103090.0,0.0457761]
[1746748448627,0.9729796,103100.0,103090.0,0.0457761]
[1746748448774,0.9759796,103100.0,103090.0,0.0457761]
[1746748449192,0.82939135,103100.0,103090.0,0.0457761]
[1746748449439,1.06828968,103100.0,103090.0,0.0457761]
[1746748449820,0.92170143,103100.0,103090.0,0.0457761]
[1746748450031,1.06828968,103100.0,103090.0,0.0457761]
[1746748450245,1.0732146,103100.0,103090.0,0.0457761]
[1746748451094,1.0732146,103100.0,103090.0,0.00013931]
[1746748451971,0.14407022,103100.0,103090.0,0.35043295]
[1746748452193,0.32205664,103100.0,103090.0,0.14672756]
[1746748452415,0.31235761,103100.0,103090.0,0.14672756]
[1746748452632,0.31242733,103100.0,103090.0,0.14672756]
[1746748453103,0.31242733,103100.0,103090.0,0.00013931]
[1746748454961,0.32792733,103100.0,103090.0,0.00013931]
[1746748459738,0.32627941,103100.0,103090.0,0.00013931]
[1746748459907,0.31077941,103100.0,103090.0,0.00013931]
[1746748465721,0.32577941,103100.0,103090.0,0.00013931]
[1746748466767,0.34167941,103100.0,103090.0,0.00013931]
[1746748470329,0.34167941,103100.0,103090.0,0.00917609]
[1746748475084,0.10874178,103100.0,103090.0,0.23388132]
[1746748475336,0.003,103100.0,103090.0,0.95450465]
[1746748475596,0.003,103100.0,103090.0,1.05988298]
[1746748475847,0.19396495,103120.0,103110.0,0.0193961]
[1746748475848,0.21335953,103120.0,103110.0,0.0193961]
[1746748476108,0.01939458,103120.0,103110.0,0.37554531]
[1746748476356,0.03878879,103120.0,103110.0,0.39130847]
[1746748476598,0.03878879,103120.0,103110.0,0.41004306]
[1746748476842,0.01939402,103120.0,103110.0,0.43554078]
[1746748477119,0.01939337,103120.0,103110.0,0.2827941]
[1746748477337,0.04848473,103120.0,103110.0,0.28885935]
[1746748477591,0.21334356,103120.0,103110.0,0.01510203]
[1746748477847,0.32971048,103120.0,103110.0,0.00903678]
[1746748478336,0.34801048,103120.0,103110.0,0.00903678]
[1746748478858,0.34819622,103120.0,103110.0,0.00903678]
[1746748479105,0.32319888,103120.0,103110.0,0.00903678]
[1746748479654,0.01939534,103110.0,103100.0,0.05455797]
[1746748479831,0.01939525,103110.0,103100.0,0.26414395]
[1746748480041,0.01959982,103110.0,103100.0,0.26414395]
[1746748480251,0.02421285,103110.0,103100.0,0.26414397]
[1746748480681,0.03391076,103110.0,103100.0,0.48770427]
[1746748480892,0.02421285,103110.0,103100.0,0.4780052]
[1746748481111,0.04660866,103110.0,103100.0,0.4780052]
[1746748481307,0.04660866,103110.0,103100.0,0.2544449]
[1746748481481,0.03691066,103110.0,103100.0,0.2544449]
[1746748481648,0.03691066,103110.0,103100.0,0.25444541]
[1746748481854,0.03691066,103110.0,103100.0,0.47194187]
[1746748482056,0.03691066,103110.0,103100.0,0.47800571]
[1746748482302,0.02721285,103110.0,103100.0,0.47800571]
[1746748482499,0.03691066,103110.0,103100.0,0.47800571]
[1746748482922,0.03691066,103110.0,103100.0,0.47194187]
[1746748484237,0.03691066,103110.0,103100.0,0.24838157]